fUSD/lending_fUSD_20251014
["ID","MTS","AMOUNT","RATE_DAILY","PERIOD"]
[391289322,1760470263106,-840.69,0.00016712,2]
[391289323,1760470263115,-500.0,0.00016712,2]
[391289324,1760470263124,-500.0,0.00016712,2]
[391289325,1760470263133,-511.02,0.00016712,2]
[391289326,1760470263142,-796.21,0.00016712,2]
[391289327,1760470263151,-500.0,0.00016712,2]
[391289328,1760470263160,-1118.93,0.00016712,2]
[391289329,1760470263169,-868.41,0.00016712,2]
[391289330,1760470263179,-500.0,0.00016712,2]
[391289331,1760470263187,-500.0,0.00016712,2]
[391289332,1760470263196,-500.0,0.00016712,2]
[391289333,1760470263205,-1870.46,0.00016712,2]
[391289334,1760470263215,-500.0,0.00016712,2]
[391289335,1760470263224,-500.0,0.00016712,2]
[391289336,1760470263233,-1228.28,0.00016712,2]
[391289337,1760470263242,-558.37,0.00016712,2]
[391289338,1760470263251,-500.0,0.00016712,2]
[391289339,1760470263260,-539.96,0.00016712,2]
[391289340,1760470263269,-1002.95,0.00016712,2]
[391289341,1760470263279,-500.0,0.00016712,2]
[391289342,1760470263288,-500.0,0.00016712,2]
[391289343,1760470263298,-688.47,0.00016712,2]
[391289344,1760470263306,-989.31,0.00016712,2]
[391289345,1760470263316,-503.21,0.00016712,2]
[391289346,1760470263325,-500.0,0.00016712,2]
[391289347,1760470263334,-1208.46,0.00016712,2]
[391289348,1760470263344,-162.12528161,0.00016712,2]
[391289349,1760470263353,-500.0,0.00016712,2]
[391289350,1760470263364,-500.0,0.00016712,2]
[391289351,1760470263373,-1347.55,0.00016712,2]
[391289352,1760470263387,-968.38,0.00016712,2]
[391289353,1760470263396,-1432.36,0.00016712,2]
[391289354,1760470263405,-500.0,0.00016712,2]
[391289355,1760470263414,-400.0,0.00016712,2]
[391289356,1760470263424,-550.09,0.00016712,2]
[391289357,1760470263433,-634.49,0.00016712,2]
[391289358,1760470263442,-582.07,0.00016712,2]
[391289359,1760470263451,-500.0,0.00016712,2]
[391289360,1760470263463,-500.0,0.00016712,2]
[391289361,1760470263473,-500.0,0.00016712,2]
[391289362,1760470263482,-500.0,0.00016712,2]
[391289363,1760470263491,-577.61,0.00016712,2]
[391289364,1760470263500,-590.69,0.00016712,2]
[391289365,1760470263509,-666.69,0.00016712,2]
[391289366,1760470263518,-599.86,0.00016712,2]
[391289367,1760470263527,-500.0,0.00016712,2]
[391289368,1760470263536,-559.69,0.00016712,2]
[391289369,1760470263546,-500.0,0.00016712,2]
[391289370,1760470263555,-1546.65,0.00016712,2]
[391289371,1760470263564,-1017.67,0.00016712,2]
[391289372,1760470263573,-500.0,0.00016712,2]
[391289373,1760470263582,-1405.19,0.00016712,2]
[391289375,1760470263592,-500.0,0.00016712,2]
[391289376,1760470263600,-500.0,0.00016712,2]
[391289377,1760470263611,-1481.46,0.00016712,2]
[391289378,1760470263620,-500.0,0.00016712,2]
[391289379,1760470263629,-1493.35,0.00016712,2]
[391289380,1760470263641,-1863.88,0.00016712,2]
[391289381,1760470263650,-500.0,0.00016712,2]
[391289382,1760470263660,-1165.81,0.00016712,2]
[391289383,1760470263669,-615.04,0.00016712,2]
[391289384,1760470263678,-500.0,0.00016712,2]
[391289385,1760470263687,-500.0,0.00016712,2]
[391289386,1760470263696,-500.0,0.00016712,2]
[391289387,1760470263705,-500.0,0.00016712,2]
[391289388,1760470263715,-500.0,0.00016712,2]
[391289389,1760470263725,-500.0,0.00016712,2]
[391289390,1760470263735,-845.77,0.00016712,2]
[391289391,1760470263744,-500.0,0.00016712,2]
[391289392,1760470263753,-500.0,0.00016712,2]
[391289393,1760470263763,-500.0,0.00016712,2]
[391289394,1760470263772,-995.12,0.00016712,2]
[391289395,1760470263781,-500.0,0.00016712,2]
[391289396,1760470263790,-500.0,0.00016712,2]
[391289397,1760470263799,-500.0,0.00016712,2]
[391289398,1760470263807,-666.9,0.00016712,2]
[391289399,1760470263817,-500.0,0.00016712,2]
[391289400,1760470263826,-500.0,0.00016712,2]
[391289401,1760470263836,-500.0,0.00016712,2]
[391289402,1760470263845,-500.0,0.00016712,2]
[391289403,1760470263855,-500.0,0.00016712,2]
[391289405,1760470263864,-500.0,0.00016712,2]
[391289406,1760470263874,-630.12,0.00016712,2]
[391289407,1760470263883,-500.0,0.00016712,2]
[391289408,1760470263892,-500.0,0.00016712,2]
[391289409,1760470263901,-702.68,0.00016712,2]
[391289410,1760470263910,-1045.02,0.00016712,2]
[391289411,1760470263919,-500.0,0.00016712,2]
[391289412,1760470263928,-500.0,0.00016712,2]
[391289413,1760470263938,-500.0,0.00016712,2]
[391289414,1760470263947,-500.0,0.00016712,2]
[391289415,1760470263955,-500.0,0.00016712,2]
[391289416,1760470263965,-500.0,0.00016712,2]
[391289417,1760470263974,-500.0,0.00016712,2]
[391289418,1760470263982,-500.0,0.00016712,2]
[391289419,1760470263992,-500.0,0.00016712,2]
[391289420,1760470264000,-500.0,0.00016712,2]
[391289421,1760470264009,-500.0,0.00016712,2]
[391289422,1760470264018,-500.0,0.00016712,2]
[391289423,1760470264037,-976.98,0.00016712,2]
[391289424,1760470264047,-500.0,0.00016712,2]
[391289425,1760470264056,-500.0,0.00016712,2]
[391289426,1760470264066,-500.0,0.00016712,2]
[391289427,1760470264075,-500.0,0.00016712,2]
[391289428,1760470264084,-500.0,0.00016712,2]
[391289429,1760470264093,-500.0,0.00016712,2]
[391289430,1760470264102,-336.46,0.00016712,2]
[391289432,1760470264111,-500.0,0.00016712,2]
[391289433,1760470264121,-500.0,0.00016712,2]
[391289434,1760470264130,-500.0,0.00016712,2]
[391289435,1760470264139,-500.0,0.00016712,2]
[391289436,1760470264148,-530.32,0.00016712,2]
[391289437,1760470264158,-500.0,0.00016712,2]
[391289438,1760470264167,-884.86,0.00016712,2]
[391289439,1760470264176,-500.0,0.00016712,2]
[391289440,1760470264185,-500.0,0.00016712,2]
[391289441,1760470264194,-500.0,0.00016712,2]
[391289442,1760470264203,-500.0,0.00016712,2]
[391289443,1760470264212,-500.0,0.00016712,2]
[391289444,1760470264222,-1661.53,0.00016712,2]
[391289445,1760470264231,-500.0,0.00016712,2]
[391289446,1760470264240,-500.0,0.00016712,2]
[391289447,1760470264249,-1079.56,0.00016712,2]
[391289448,1760470264258,-500.0,0.00016712,2]
[391289449,1760470264268,-500.0,0.00016712,2]
[391289450,1760470264278,-500.0,0.00016712,2]
[391289451,1760470264288,-500.0,0.00016712,2]
[391289452,1760470264297,-500.0,0.00016712,2]
[391289453,1760470264307,-500.0,0.00016712,2]
[391289454,1760470264317,-521.65447643,0.00016712,2]
[391289455,1760470264326,-500.0,0.00016712,2]
[391289456,1760470264335,-713.93,0.00016712,2]
[391289458,1760470264345,-863.39,0.00016712,2]
[391289459,1760470264355,-632.8,0.00016712,2]
[391289460,1760470264365,-500.0,0.00016712,2]
[391289461,1760470264374,-500.0,0.00016712,2]
[391289462,1760470264389,-581.24,0.00016712,2]
[391289463,1760470264398,-500.0,0.00016712,2]
[391289464,1760470264407,-500.0,0.00016712,2]
[391289465,1760470264416,-500.0,0.00016712,2]
[391289466,1760470264426,-622.91,0.00016712,2]
[391289467,1760470264435,-500.0,0.00016712,2]
[391289468,1760470264447,-699.63,0.00016712,2]
[391289469,1760470264457,-500.0,0.00016712,2]
[391289470,1760470264466,-860.05,0.00016712,2]
[391289471,1760470264475,-500.0,0.00016712,2]
[391289472,1760470264485,-535.38,0.00016712,2]
[391289473,1760470264494,-500.0,0.00016712,2]
[391289474,1760470264503,-500.0,0.00016712,2]
[391289475,1760470264512,-549.26,0.00016712,2]
[391289476,1760470264521,-192.79,0.00016712,2]
[391289477,1760470264530,-500.0,0.00016712,2]
[391289478,1760470264539,-1235.98,0.00016712,2]
[391289479,1760470264549,-500.0,0.00016712,2]
[391289480,1760470264558,-500.0,0.00016712,2]
[391289481,1760470264567,-500.0,0.00016712,2]
[391289482,1760470264576,-532.51,0.00016712,2]
[391289484,1760470264589,-1599.92,0.00016712,2]
[391289485,1760470264598,-500.0,0.00016712,2]
[391289486,1760470264608,-500.0,0.00016712,2]
[391289487,1760470264617,-500.0,0.00016712,2]
[391289488,1760470264626,-501.42,0.00016712,2]
[391289489,1760470264635,-500.0,0.00016712,2]
[391289490,1760470264645,-500.0,0.00016712,2]
[391289491,1760470264654,-500.0,0.00016712,2]
[391289492,1760470264664,-500.0,0.00016712,2]
[391289493,1760470264673,-1893.86,0.00016712,2]
[391289494,1760470264682,-643.32,0.00016712,2]
[391289495,1760470264692,-500.0,0.00016712,2]
[391289496,1760470264701,-1633.98,0.00016712,2]
[391289497,1760470264710,-655.61,0.00016712,2]
[391289498,1760470264719,-151.0,0.00016712,2]
[391289499,1760470264729,-151.0,0.00016712,2]
[391289500,1760470264738,-500.0,0.00016712,2]
[391289501,1760470264748,-263.357394,0.00016712,2]
[391289502,1760470264757,-263.357394,0.00016712,2]
[391289503,1760470264767,-1863.8,0.00016712,2]
[391289504,1760470264777,-500.0,0.00016712,2]
[391289505,1760470264786,-263.357394,0.00016712,2]
[391289506,1760470264796,-263.357394,0.00016712,2]
[391289507,1760470264805,-500.0,0.00016712,2]
[391289508,1760470264814,-500.0,0.00016712,2]
[391289510,1760470264823,-263.357394,0.00016712,2]
[391289511,1760470264833,-263.357394,0.00016712,2]
[391289512,1760470264842,-732.11,0.00016712,2]
[391289513,1760470264851,-263.357394,0.00016712,2]
[391289514,1760470264861,-500.0,0.00016712,2]
[391289515,1760470264870,-500.0,0.00016712,2]
[391289516,1760470264880,-263.357398,0.00016712,2]
[391289517,1760470264889,-931.06,0.00016712,2]
[391289518,1760470264898,-1829.34,0.00016712,2]
[391289519,1760470264907,-500.0,0.00016712,2]
[391289520,1760470264917,-500.0,0.00016712,2]
[391289521,1760470264927,-1773.97,0.00016712,2]
[391289522,1760470264936,-500.0,0.00016712,2]
[391289523,1760470264945,-500.0,0.00016712,2]
[391289524,1760470264954,-215.696926,0.00016712,2]
[391289525,1760470264967,-1348.9,0.00016712,2]
[391289526,1760470264978,-215.696926,0.00016712,2]
[391289527,1760470264987,-500.0,0.00016712,2]
[391289528,1760470264997,-1445.37,0.00016712,2]
[391289529,1760470265008,-215.696926,0.00016712,2]
[391289530,1760470265019,-215.696926,0.00016712,2]
[391289531,1760470265028,-500.0,0.00016712,2]
[391289532,1760470265037,-834.86,0.00016712,2]
[391289533,1760470265047,-705.99,0.00016712,2]
[391289535,1760470265056,-2975.7,0.00016712,2]
[391289536,1760470265066,-500.0,0.00016712,2]
[391289537,1760470265075,-500.0,0.00016712,2]
[391289538,1760470265084,-500.0,0.00016712,2]
[391289539,1760470265094,-215.696926,0.00016712,2]
[391289540,1760470265103,-689.07,0.00016712,2]
[391289541,1760470265113,-215.696926,0.00016712,2]
[391289542,1760470265122,-1138.96,0.00016712,2]
[391289543,1760470265132,-500.0,0.00016712,2]
[391289544,1760470265141,-215.696926,0.00016712,2]
[391289545,1760470265150,-215.69693387,0.00016712,2]
[391289546,1760470265160,-624.14,0.00016712,2]
[391289547,1760470265169,-531.16,0.00016712,2]
[391289548,1760470265179,-1529.3,0.00016712,2]
[391289549,1760470265188,-500.0,0.00016712,2]
[391289550,1760470265197,-500.0,0.00016712,2]
[391289551,1760470265207,-2316.11,0.00016712,2]
[391289552,1760470265216,-500.0,0.00016712,2]
[391289553,1760470265225,-541.35,0.00016712,2]
[391289554,1760470265235,-500.0,0.00016712,2]
[391289555,1760470265244,-500.0,0.00016712,2]
[391289556,1760470265254,-500.0,0.00016712,2]
[391289557,1760470265267,-500.0,0.00016712,2]
[391289558,1760470265277,-500.0,0.00016712,2]
[391289560,1760470265287,-1344.14,0.00016712,2]
[391289561,1760470265296,-1058.36,0.00016712,2]
[391289562,1760470265306,-500.0,0.00016712,2]
[391289563,1760470265316,-500.0,0.00016712,2]
[391289564,1760470265326,-1109.4,0.00016712,2]
[391289565,1760470265336,-500.0,0.00016712,2]
[391289566,1760470265345,-615.06,0.00016712,2]
[391289567,1760470265357,-500.0,0.00016712,2]
[391289568,1760470265367,-500.0,0.00016712,2]
[391289569,1760470265377,-500.0,0.00016712,2]
[391289570,1760470265392,-877.9,0.00016712,2]
[391289571,1760470265401,-720.56,0.00016712,2]
[391289572,1760470265411,-500.0,0.00016712,2]
[391289573,1760470265421,-437.16399664,0.00016712,2]
[391289574,1760470265433,-585.85,0.00016712,2]
[391289575,1760470265443,-500.0,0.00016712,2]
[391289576,1760470265453,-500.0,0.00016712,2]
[391289577,1760470265465,-500.0,0.00016712,2]
[391289578,1760470265475,-1073.42,0.00016712,2]
[391289579,1760470265484,-500.0,0.00016712,2]
[391289580,1760470265494,-500.0,0.00016712,2]
[391289581,1760470265504,-500.0,0.00016712,2]
[391289582,1760470265514,-500.0,0.00016712,2]
[391289583,1760470265524,-678.38,0.00016712,2]
[391289584,1760470265535,-500.0,0.00016712,2]
[391289585,1760470265545,-500.0,0.00016712,2]
[391289587,1760470265558,-500.0,0.00016712,2]
[391289588,1760470265569,-500.0,0.00016712,2]
[391289589,1760470265579,-654.15,0.00016712,2]
[391289590,1760470265589,-500.0,0.00016712,2]
[391289591,1760470265600,-1090.8,0.00016712,2]
[391289592,1760470265612,-669.37,0.00016712,2]
[391289593,1760470265622,-500.0,0.00016712,2]
[391289594,1760470265633,-151.0,0.00016712,2]
[391289595,1760470265644,-500.0,0.00016712,2]
[391289596,1760470265655,-151.0,0.00016712,2]
[391289597,1760470265665,-500.0,0.00016712,2]
[391289598,1760470265675,-151.0,0.00016712,2]
[391289599,1760470265686,-151.0,0.00016712,2]
[391289600,1760470265696,-472.18,0.00016712,2]
[391289601,1760470265707,-1229.42,0.00016712,2]
[391289602,1760470265717,-500.0,0.00016712,2]
[391289603,1760470265727,-500.0,0.00016712,2]
[391289604,1760470265738,-500.0,0.00016712,2]
[391289605,1760470265751,-500.0,0.00016712,2]
[391289606,1760470265762,-906.83,0.00016712,2]
[391289607,1760470265773,-500.0,0.00016712,2]
[391289608,1760470265784,-563.32,0.00016712,2]
[391289610,1760470265794,-500.0,0.00016712,2]
[391289611,1760470265804,-500.0,0.00016712,2]
[391289612,1760470265815,-500.0,0.00016712,2]
[391289613,1760470265825,-668.43,0.00016712,2]
[391289614,1760470265834,-500.0,0.00016712,2]
[391289615,1760470265844,-500.0,0.00016712,2]
[391289616,1760470265854,-500.0,0.00016712,2]
[391289617,1760470265866,-518.6,0.00016712,2]
[391289618,1760470265878,-962.22,0.00016712,2]
[391289619,1760470265889,-500.0,0.00016712,2]
[391289620,1760470265900,-500.0,0.00016712,2]
[391289621,1760470265912,-500.0,0.00016712,2]
[391289622,1760470265923,-500.0,0.00016712,2]
[391289623,1760470265934,-1408.48,0.00016712,2]
[391289624,1760470265945,-897.34,0.00016712,2]
[391289625,1760470265959,-543.61,0.00016712,2]
[391289626,1760470265971,-500.0,0.00016712,2]
[391289627,1760470265982,-500.0,0.00016712,2]
[391289628,1760470265992,-838.51,0.00016712,2]
[391289629,1760470266003,-2173.81,0.00016712,2]
[391289630,1760470266014,-500.0,0.00016712,2]
[391289631,1760470266026,-889.19,0.00016712,2]
[391289632,1760470266036,-500.0,0.00016712,2]
[391289633,1760470266047,-1003.49,0.00016712,2]
[391289634,1760470266058,-500.0,0.00016712,2]
[391289635,1760470266069,-500.0,0.00016712,2]
[391289636,1760470266079,-1096.96,0.00016712,2]
[391289637,1760470266090,-900.78,0.00016712,2]
[391289638,1760470266101,-500.0,0.00016712,2]
[391289640,1760470266112,-1022.92,0.00016712,2]
[391289641,1760470266122,-1321.46,0.00016712,2]
[391289642,1760470266133,-500.0,0.00016712,2]
[391289643,1760470266144,-2461.71,0.00016712,2]
[391289644,1760470266154,-659.65,0.00016712,2]
[391289645,1760470266165,-500.0,0.00016712,2]
[391289646,1760470266175,-500.0,0.00016712,2]
[391289647,1760470266186,-500.0,0.00016712,2]
[391289648,1760470266197,-1496.59,0.00016712,2]
[391289649,1760470266207,-500.0,0.00016712,2]
[391289650,1760470266217,-500.0,0.00016712,2]
[391289651,1760470266227,-504.23,0.00016712,2]
[391289652,1760470266237,-1098.26,0.00016712,2]
[391289653,1760470266249,-500.0,0.00016712,2]
[391289654,1760470266261,-500.0,0.00016712,2]
[391289655,1760470266271,-868.45,0.00016712,2]
[391289656,1760470266282,-1647.08,0.00016712,2]
[391289657,1760470266293,-500.0,0.00016712,2]
[391289658,1760470266303,-500.0,0.00016712,2]
[391289659,1760470266314,-746.15,0.00016712,2]
[391289660,1760470266325,-500.0,0.00016712,2]
[391289661,1760470266345,-500.0,0.00016712,2]
[391289663,1760470266357,-610.04,0.00016712,2]
[391289664,1760470266371,-500.0,0.00016712,2]
[391289665,1760470266385,-500.0,0.00016712,2]
[391289666,1760470266395,-500.0,0.00016712,2]
[391289667,1760470266406,-500.0,0.00016712,2]
[391289668,1760470266417,-500.0,0.00016712,2]
[391289669,1760470266430,-636.57,0.00016712,2]
[391289670,1760470266441,-500.0,0.00016712,2]
[391289671,1760470266452,-500.0,0.00016712,2]
[391289672,1760470266464,-500.0,0.00016712,2]
[391289673,1760470266475,-836.886533,0.00016712,2]
[391289674,1760470266486,-500.0,0.00016712,2]
[391289675,1760470266496,-836.886533,0.00016712,2]
[391289676,1760470266507,-836.886533,0.00016712,2]
[391289677,1760470266517,-1563.94,0.00016712,2]
[391289678,1760470266528,-836.886533,0.00016712,2]
[391289679,1760470266539,-2127.04,0.00016712,2]
[391289680,1760470266550,-1248.6,0.00016712,2]
[391289681,1760470266560,-836.886533,0.00016712,2]
[391289682,1760470266571,-500.0,0.00016712,2]
[391289683,1760470266581,-836.886533,0.00016712,2]
[391289684,1760470266591,-274.79,0.00016712,2]
[391289685,1760470266601,-836.886533,0.00016712,2]
[391289686,1760470266614,-909.08,0.00016712,2]
[391289687,1760470266625,-836.886529,0.00016712,2]
[391289688,1760470266636,-1134.65,0.00016712,2]
[391289689,1760470266647,-500.0,0.00016712,2]
[391289690,1760470266658,-500.0,0.00016712,2]
[391289691,1760470266668,-1114.51,0.00016712,2]
[391289692,1760470266678,-516.22,0.00016712,2]
[391289693,1760470266688,-500.0,0.00016712,2]
[391289694,1760470266699,-500.0,0.00016712,2]
[391289695,1760470266709,-1172.2,0.00016712,2]
[391289696,1760470266723,-1221.46,0.00016712,2]
[391289697,1760470266734,-500.0,0.00016712,2]
[391289698,1760470266745,-500.0,0.00016712,2]
[391289699,1760470266755,-500.0,0.00016712,2]
[391289700,1760470266766,-500.0,0.00016712,2]
[391289701,1760470266779,-500.0,0.00016712,2]
[391289702,1760470266799,-151.0,0.00016712,2]
[391289703,1760470266810,-753.205406,0.00016712,2]
[391289704,1760470266820,-160.122705,0.00016712,2]
[391289705,1760470266831,-753.205406,0.00016712,2]
[391289706,1760470266841,-753.205406,0.00016712,2]
[391289707,1760470266852,-500.0,0.00016712,2]
[391289708,1760470266865,-753.205406,0.00016712,2]
[391289709,1760470266876,-500.0,0.00016712,2]
[391289710,1760470266887,-500.0,0.00016712,2]
[391289711,1760470266898,-500.0,0.00016712,2]
[391289712,1760470266910,-753.205406,0.00016712,2]
[391289713,1760470266921,-1032.29,0.00016712,2]
[391289714,1760470266934,-753.205406,0.00016712,2]
[391289715,1760470266948,-621.11,0.00016712,2]
[391289716,1760470266959,-611.49,0.00016712,2]
[391289717,1760470266970,-753.205406,0.00016712,2]
[391289718,1760470266981,-500.0,0.00016712,2]
[391289719,1760470266993,-753.205411,0.00016712,2]
[391289720,1760470267004,-500.0,0.00016712,2]
[391289721,1760470267015,-500.0,0.00016712,2]
[391289722,1760470267026,-500.0,0.00016712,2]
[391289723,1760470267036,-1011.43,0.00016712,2]
[391289724,1760470267046,-500.0,0.00016712,2]
[391289725,1760470267057,-960.01,0.00016712,2]
[391289726,1760470267068,-1138.67,0.00016712,2]
[391289727,1760470267078,-500.0,0.00016712,2]
[391289728,1760470267089,-798.62,0.00016712,2]
[391289729,1760470267100,-1641.78,0.00016712,2]
[391289730,1760470267116,-1881.99,0.00016712,2]
[391289731,1760470267126,-500.0,0.00016712,2]
[391289732,1760470267137,-500.0,0.00016712,2]
[391289733,1760470267148,-500.0,0.00016712,2]
[391289734,1760470267158,-500.0,0.00016712,2]
[391289735,1760470267169,-506.48,0.00016712,2]
[391289736,1760470267179,-1012.51,0.00016712,2]
[391289737,1760470267190,-929.68,0.00016712,2]
[391289738,1760470267200,-500.0,0.00016712,2]
[391289739,1760470267210,-549.55,0.00016712,2]
[391289740,1760470267220,-1074.91,0.00016712,2]
[391289741,1760470267231,-1063.15,0.00016712,2]
[391289742,1760470267241,-500.0,0.00016712,2]
[391289743,1760470267251,-1122.19,0.00016712,2]
[391289744,1760470267262,-500.0,0.00016712,2]
[391289745,1760470267273,-178.39337155,0.00016712,2]
[391289746,1760470267283,-574.66,0.00016712,2]
[391289747,1760470267296,-1006.98,0.00016712,2]
[391289748,1760470267307,-516.89,0.00016712,2]
[391289749,1760470267318,-648.46,0.00016712,2]
[391289750,1760470267328,-710.02,0.00016712,2]
[391289751,1760470267338,-599.18520328,0.00016712,2]
[391289752,1760470267349,-151.0,0.00016712,2]
[391289753,1760470267362,-500.0,0.00016712,2]
[391289754,1760470267372,-151.0,0.00016712,2]
[391289755,1760470267384,-500.0,0.00016712,2]
[391289756,1760470267395,-500.0,0.00016712,2]
[391289757,1760470267406,-624.35,0.00016712,2]
[391289758,1760470267416,-500.0,0.00016712,2]
[391289759,1760470267427,-500.0,0.00016712,2]
[391289760,1760470267438,-500.0,0.00016712,2]
[391289761,1760470267449,-500.0,0.00016712,2]
[391289762,1760470267462,-500.0,0.00016712,2]
[391289763,1760470267472,-1114.85,0.00016712,2]
[391289764,1760470267482,-716.89,0.00016712,2]
[391289765,1760470267492,-500.0,0.00016712,2]
[391289766,1760470267502,-500.0,0.00016712,2]
[391289767,1760470267512,-597.68,0.00016712,2]
[391289768,1760470267523,-500.0,0.00016712,2]
[391289769,1760470267533,-500.0,0.00016712,2]
[391289770,1760470267543,-500.0,0.00016712,2]
[391289771,1760470267553,-572.37,0.00016712,2]
[391289772,1760470267563,-2025.4,0.00016712,2]
[391289773,1760470267573,-1526.85,0.00016712,2]
[391289774,1760470267583,-500.0,0.00016712,2]
[391289775,1760470267593,-1710.65,0.00016712,2]
[391289776,1760470267604,-500.0,0.00016712,2]
[391289777,1760470267616,-500.0,0.00016712,2]
[391289778,1760470267626,-500.0,0.00016712,2]
[391289779,1760470267636,-500.0,0.00016712,2]
[391289780,1760470267647,-908.78,0.00016712,2]
[391289781,1760470267658,-1628.56,0.00016712,2]
[391289782,1760470267669,-599.93,0.00016712,2]
[391289783,1760470267679,-151.0,0.00016712,2]
[391289784,1760470267689,-151.0,0.00016712,2]
[391289785,1760470267699,-500.0,0.00016712,2]
[391289786,1760470267708,-1062.13,0.00016712,2]
[391289787,1760470267718,-500.0,0.00016712,2]
[391289788,1760470267728,-151.0,0.00016712,2]
[391289789,1760470267738,-699.12,0.00016712,2]
[391289790,1760470267748,-151.0,0.00016712,2]
[391289791,1760470267758,-500.0,0.00016712,2]
[391289792,1760470267768,-151.0,0.00016712,2]
[391289793,1760470267778,-151.0,0.00016712,2]
[391289794,1760470267788,-500.0,0.00016712,2]
[391289795,1760470267799,-525.58,0.00016712,2]
[391289796,1760470267809,-500.0,0.00016712,2]
[391289797,1760470267819,-500.0,0.00016712,2]
[391289798,1760470267829,-1312.54,0.00016712,2]
[391289799,1760470267839,-1222.51,0.00016712,2]
[391289800,1760470267849,-500.0,0.00016712,2]
[391289801,1760470267861,-565.94,0.00016712,2]
[391289802,1760470267872,-643.312878,0.00016712,2]
[391289803,1760470267883,-643.312878,0.00016712,2]
[391289804,1760470267893,-500.0,0.00016712,2]
[391289805,1760470267903,-643.312878,0.00016712,2]
[391289806,1760470268270,-643.312878,0.00016712,2]
[391289807,1760470268326,-500.0,0.00016712,2]
[391289808,1760470268337,-643.312878,0.00016712,2]
[391289809,1760470268346,-500.0,0.00016712,2]
[391289810,1760470268356,-643.312878,0.00016712,2]
[391289811,1760470268368,-643.312878,0.00016712,2]
[391289812,1760470268378,-500.0,0.00016712,2]
[391289813,1760470268392,-643.31288,0.00016712,2]
[391289814,1760470268403,-609.17,0.00016712,2]
[391289815,1760470268412,-500.0,0.00016712,2]
[391289816,1760470268423,-500.0,0.00016712,2]
[391289817,1760470268434,-500.0,0.00016712,2]
[391289818,1760470268443,-500.0,0.00016712,2]
[391289819,1760470268453,-1213.77,0.00016712,2]
[391289820,1760470268468,-1810.53,0.00016712,2]
[391289821,1760470268478,-2269.47,0.00016712,2]
[391289822,1760470268488,-848.26,0.00016712,2]
[391289823,1760470268498,-500.0,0.00016712,2]
[391289824,1760470268507,-500.0,0.00016712,2]
[391289825,1760470268516,-1143.15,0.00016712,2]
[391289826,1760470268528,-500.0,0.00016712,2]
[391289827,1760470268538,-500.0,0.00016712,2]
[391289828,1760470268547,-1119.49,0.00016712,2]
[391289829,1760470268556,-500.0,0.00016712,2]
[391289830,1760470268567,-500.0,0.00016712,2]
[391289831,1760470268577,-500.0,0.00016712,2]
[391289832,1760470268586,-500.0,0.00016712,2]
[391289833,1760470268596,-734.76,0.00016712,2]